bitfinex/quotes_SOLUSD_20240922
["timestamp","ask_amount","ask_price","bid_price","bid_amount"]
[1726967131247,6.7114,149.0,148.95,6.7135]
[1726967131444,6.711,149.01,148.96,6.7131]
[1726967133469,8.38953863,149.0,148.95,6.7136]
[1726967133770,23.87693863,149.0,148.95,6.7136]
[1726967134360,22.1988,149.0,148.95,6.7136]
[1726967134764,1.67814004,148.99,148.91,16.7882]
[1726967134972,21.67814004,148.99,148.91,16.7882]
[1726967136357,6.7135,148.96,148.91,23.5034]
[1726967136670,1.6786427,148.95,148.91,23.5034]
[1726967136875,6.7135,148.96,148.91,23.5034]
[1726967137174,6.7128,148.97,148.91,23.5034]
[1726967137749,6.7128,148.97,148.92,6.715]
[1726967144071,8.39179154,148.96,148.91,23.5036]
[1726967144259,6.7136,148.95,148.91,23.5036]
[1726967144463,1.67873051,148.94,148.91,23.5036]
[1726967144885,6.7136,148.95,148.91,23.5036]
[1726967147478,1.67874818,148.94,148.91,16.7882]
[1726967147683,8.39284818,148.94,148.89,6.7162]
[1726967147861,0.12549,148.98,148.89,6.7162]
[1726967147862,8.39353354,148.93,148.89,6.7162]
[1726967148183,6.7146,148.93,148.89,6.7162]
[1726967150071,15.4874,148.95,148.9,6.7158]
[1726967151263,22.201,148.95,148.9,6.7158]
[1726967158766,8.39290893,148.94,148.9,6.7158]
[1726967160494,6.7145,148.93,148.88,23.5079]
[1726967160669,1.67895074,148.92,148.89,6.7163]
[1726967161162,1.67895074,148.92,148.88,23.5081]
[1726967165080,8.39395074,148.92,148.88,23.5081]
[1726967165278,1.67911053,148.91,148.88,16.7915]
[1726967167084,1.67911053,148.91,148.87,6.7172]
[1726967167085,8.39471053,148.91,148.87,6.7172]
[1726967167321,1.67922018,148.9,148.86,6.9662884]
[1726967167893,6.7156,148.91,148.86,6.9662884]
[1726967168490,1.67921454,148.9,148.86,6.9662884]
[1726967169503,6.7156,148.91,148.87,6.7171]
[1726967170204,6.7151,148.92,148.87,6.7171]
[1726967172485,20.25098,148.94,148.86,0.2487884]
[1726967172691,6.7162,148.9,148.86,0.2487884]
[1726967172886,1.67939432,148.89,148.86,0.2487884]
[1726967173899,8.39589432,148.89,148.86,0.2487884]
[1726967174109,1.67939432,148.89,148.86,0.2487884]
[1726967174682,15.7404,148.9,148.86,0.2487884]
[1726967175407,22.4567,148.9,148.86,0.2487884]
[1726967177092,1.67939932,148.89,148.86,0.2487884]
[1726967178608,22.4567,148.9,148.86,0.2487884]
[1726967179294,8.39609778,148.89,148.86,0.2487884]
[1726967179608,6.7167,148.89,148.86,0.2487884]
[1726967181890,6.717,148.88,148.86,0.2487884]
[1726967182914,6.7164,148.89,148.86,0.2487884]
[1726967186496,1.67958227,148.88,148.86,0.2487884]
[1726967186711,6.7164,148.89,148.86,0.2487884]
[1726967187208,1.67959331,148.88,148.86,0.2487884]
[1726967188414,8.39639331,148.88,148.86,0.2487884]
[1726967188992,6.7168,148.88,148.86,0.2487884]
[1726967189419,15.7404,148.9,148.86,0.2487884]
[1726967189718,6.7165,148.89,148.86,0.2487884]
[1726967195593,1.67955771,148.88,148.86,0.2487884]
[1726967195803,6.7165,148.89,148.86,0.2487884]
[1726967202720,15.7404,148.9,148.86,0.2487884]
[1726967202927,15.7404,148.9,148.82,0.2487884]
[1726967202928,6.7178,148.86,148.82,6.9682884]
[1726967203225,1.67983639,148.85,148.82,6.9682884]
[1726967205621,6.7178,148.86,148.82,6.9682884]
[1726967206829,1.67982162,148.85,148.82,6.9682884]
[1726967207231,6.7186,148.84,148.82,0.2487884]
[1726967207536,1.67996022,148.83,148.82,0.2487884]
[1726967211224,6.7173,148.87,148.82,6.9679884]
[1726967211415,6.7178,148.86,148.82,6.9679884]
[1726967214434,26.84259,148.88,148.83,6.7189]
[1726967215706,20.0,148.88,148.84,6.7186]
[1726967216214,20.0,148.88,148.85,6.7181]
[1726967218431,20.0,148.88,148.83,16.7971]
[1726967218737,6.7164,148.89,148.84,6.7185]
[1726967219038,28.39630919,148.88,148.84,6.7185]
[1726967219418,28.39630919,148.88,148.83,23.5161]
[1726967220736,1.67959158,148.87,148.83,23.5161]
[1726967223417,8.39689158,148.87,148.83,16.7971]
[1726967223825,6.7178,148.86,148.82,0.2487884]
[1726967224029,1.67983377,148.85,148.82,0.2487884]
[1726967225936,6.7178,148.86,148.82,0.2487884]
[1726967226344,6.7178,148.86,148.82,6.9681884]
[1726967226720,6.7168,148.88,148.84,6.7185]
[1726967226928,26.7164,148.89,148.84,6.7185]
[1726967229931,15.6268,148.94,148.85,1.343623]
[1726967230135,6.7156,148.91,148.86,6.7173]
[1726967231019,6.7161,148.9,148.86,6.7173]
[1726967231226,6.7161,148.9,148.85,6.7181]
[1726967231435,1.67933045,148.89,148.85,6.7181]
[1726967232040,6.7157,148.91,148.86,6.7176]
[1726967232254,20.0,148.9,148.86,23.511]
[1726967232429,1.6792997,148.89,148.86,23.511]
[1726967233346,26.716,148.9,148.86,23.511]
[1726967237849,6.7164,148.89,148.83,33.2248]
[1726967238850,6.7164,148.89,148.84,6.7185]
[1726967239849,1.67950949,148.88,148.84,6.7185]
[1726967240453,6.7164,148.89,148.84,6.7185]
[1726967246263,6.7164,148.89,148.85,6.718]
[1726967246563,6.7159,148.9,148.85,6.718]
[1726967247146,6.7159,148.9,148.86,6.7176]
[1726967249158,6.7154,148.92,148.87,8.06022825]
[1726967249565,6.7146,148.93,148.88,6.7163]
[1726967249769,6.716,148.9,148.85,6.297]
[1726967249966,6.716,148.9,148.82,44.0256724]
[1726967250772,6.716,148.9,148.85,6.7178]
[1726967253366,6.716,148.9,148.86,6.7176]
[1726967253944,6.7155,148.91,148.86,6.7176]
[1726967254169,6.7151,148.92,148.87,8.06042178]
[1726967254355,6.7151,148.92,148.88,6.7167]
[1726967255273,26.7146,148.93,148.88,6.7167]
[1726967255464,6.7146,148.93,148.88,6.7167]
[1726967256375,6.7146,148.93,148.89,6.7162]
[1726967256952,6.7166,148.89,148.82,0.2487884]
[1726967257154,8.39622989,148.88,148.84,6.7185]
[1726967257370,8.39622989,148.88,148.82,0.2487884]
[1726967257371,8.39680632,148.87,148.82,17.0470884]
[1726967257554,8.39680632,148.87,148.82,23.7663884]
[1726967258884,6.7173,148.87,148.82,23.7663884]
[1726967265991,15.2806,148.89,148.84,6.7182]
[1726967266291,1.67945237,148.88,148.83,6.719]
[1726967266667,6.7175,148.87,148.82,23.7664884]
[1726967267295,6.7177,148.86,148.82,23.7664884]
[1726967268269,1.67966646,148.85,148.82,23.7664884]
[1726967269381,6.7177,148.86,148.82,23.7664884]
[1726967269691,6.7177,148.86,148.82,17.0470884]
[1726967269893,8.397832,148.85,148.82,0.2487884]
[1726967270096,1.67984572,148.84,148.82,0.2487884]
[1726967270599,16.6474,148.83,148.82,0.2487884]
[1726967271098,23.3664,148.83,148.82,0.2487884]
[1726967273575,16.6474,148.83,148.82,0.2487884]
[1726967276290,6.7186,148.84,148.82,0.2487884]
[1726967276702,6.719,148.83,148.82,0.2487884]
[1726967276906,6.719,148.84,148.82,0.2487884]
[1726967277081,1.67993428,148.83,148.82,0.2487884]
[1726967277894,6.719,148.83,148.82,0.2487884]
[1726967278081,8.39893414,148.83,148.82,0.2487884]
[1726967279415,6.7206,148.8,148.77,0.2487884]
[1726967279718,1.68046745,148.79,148.77,0.2487884]
[1726967280505,6.7227,148.75,148.73,0.2487884]
[1726967281094,8.40311326,148.77,148.73,0.2487884]
[1726967282321,6.7222,148.77,148.73,0.2487884]
[1726967284526,6.7222,148.77,148.73,6.9722884]
[1726967285115,8.40310776,148.76,148.73,0.2487884]
[1726967286229,6.7222,148.76,148.73,0.2487884]
[1726967293133,1.68093758,148.75,148.73,0.2487884]
[1726967294231,6.7222,148.76,148.73,0.2487884]
[1726967309366,1.68102091,148.75,148.73,0.2487884]
[1726967309565,8.40372091,148.75,148.73,0.2487884]
[1726967309768,0.12549,148.74,148.73,0.2487884]
[1726967309943,0.25098,148.74,148.73,0.2487884]
[1726967311264,6.97408,148.74,148.73,0.2487884]
[1726967314246,20.0,148.73,148.7,0.170332]
[1726967314479,6.84989,148.71,148.7,0.170332]
[1726967314648,6.97538,148.71,148.7,0.170332]
[1726967316176,6.7241,148.72,148.7,0.170332]
[1726967320772,26.84919,148.73,148.7,0.170332]
[1726967320981,0.12549,148.73,148.7,0.170332]
[1726967321158,20.12549,148.73,148.7,0.170332]
[1726967322076,6.84919,148.73,148.7,0.170332]
[1726967323060,26.723,148.75,148.7,6.895032]
[1726967323258,20.0,148.76,148.7,0.170332]
[1726967323568,15.842,148.8,148.73,6.7235]
[1726967324165,15.842,148.8,148.71,8.06877454]
[1726967324378,15.842,148.8,148.71,6.724]
[1726967324783,20.0,148.79,148.71,6.724]
[1726967324988,0.25098,148.78,148.71,6.724]
[1726967325368,6.7222,148.76,148.71,23.5351]
[1726967326289,6.97228,148.78,148.71,16.8111]
[1726967326491,0.25098,148.78,148.73,6.7233]
[1726967326794,20.0,148.76,148.72,6.7239]
[1726967330595,15.842,148.8,148.73,16.8081]
[1726967330774,7.01703359,148.82,148.73,18.15281132]
[1726967330973,7.01703359,148.82,148.74,6.5837]
[1726967331184,15.4509884,148.84,148.75,1.34432264]
[1726967331867,6.7198,148.82,148.77,6.7217]
[1726967332078,6.72,148.81,148.76,6.7221]
[1726967332275,20.0,148.8,148.76,6.7221]
[1726967332572,26.7204,148.8,148.76,6.7221]
[1726967332790,6.7209,148.79,148.75,23.5286]
[1726967332999,8.40133617,148.79,148.75,23.5286]
[1726967334199,6.7213,148.78,148.75,16.8061]
[1726967334406,1.68067281,148.77,148.75,16.8061]
[1726967335800,6.7213,148.78,148.75,16.8061]
[1726967336603,6.84639,148.79,148.75,16.8061]
[1726967336786,6.7207,148.8,148.75,23.5284]
[1726967338600,6.7207,148.8,148.76,6.722]
[1726967338982,15.4509884,148.84,148.77,16.8038]
[1726967339309,0.2487884,148.84,148.77,16.8038]
[1726967339514,0.2487884,148.84,148.78,6.721]
[1726967339515,6.7194,148.83,148.78,6.721]
[1726967339709,6.7195,148.82,148.78,6.721]
[1726967340512,1.68022086,148.81,148.78,6.721]
[1726967340697,8.40032086,148.81,148.77,16.8038]
[1726967341590,1.68042157,148.8,148.77,16.8038]
[1726967344705,6.7201,148.81,148.77,23.5255]
[1726967345114,6.97048,148.83,148.78,6.7212]
[1726967348226,6.7195,148.82,148.78,6.7212]
[1726967352633,6.7195,148.82,148.77,23.5255]
[1726967352811,8.40050689,148.81,148.77,16.8038]
[1726967353625,8.40050689,148.81,148.76,6.7221]
[1726967353626,6.7208,148.79,148.74,13.3064]
[1726967353822,1.68053008,148.78,148.74,13.3064]
[1726967354029,1.68053008,148.78,148.74,30.1137]
[1726967359235,8.40193008,148.78,148.74,30.1137]
[1726967359441,1.6806508,148.77,148.74,30.1137]
[1726967359612,1.6806508,148.77,148.74,23.391]
[1726967360409,1.6806508,148.77,148.74,16.8073]
[1726967360611,8.4025508,148.77,148.72,21.8003]
[1726967360827,1.68081983,148.76,148.72,21.8003]
[1726967361735,8.40311983,148.76,148.72,6.7239]
[1726967361913,1.68089593,148.75,148.72,6.7239]
[1726967365630,0.12549,148.79,148.75,6.7224]
[1726967365815,20.12549,148.79,148.75,6.7224]
[1726967366017,20.0,148.79,148.75,6.7224]
[1726967366636,6.7209,148.79,148.75,6.7224]
[1726967367736,16.7992,148.82,148.77,6.7216]
[1726967367737,6.7195,148.82,148.77,6.7216]
[1726967368036,22.4028158,148.83,148.77,6.7216]
[1726967368037,6.7192,148.83,148.78,6.7212]
[1726967372753,0.2487884,148.84,148.78,1.34416697]
[1726967373733,0.2487884,148.84,148.82,6.7194]
[1726967373933,0.2487884,148.84,148.78,1.34416697]
[1726967374550,0.2487884,148.84,148.82,16.7987]
[1726967375752,0.2487884,148.84,148.82,23.5182]
[1726967376278,0.2487884,148.84,148.83,8.06278548]
[1726967376576,0.2487884,148.84,148.83,6.719]
[1726967386163,0.2487884,148.84,148.83,8.06249308]
[1726967389785,0.2487884,148.84,148.83,6.719]
[1726967391991,0.2487884,148.84,148.83,8.06248795]
[1726967392186,0.2487884,148.84,148.83,31.83937195]
[1726967392887,0.2487884,148.84,148.83,30.495884]
[1726967396073,0.2487884,148.84,148.83,6.719]
[1726967397002,0.2487884,148.84,148.83,30.495884]
[1726967397290,0.2487884,148.84,148.83,31.83934111]
[1726967397492,0.2487884,148.84,148.83,30.495884]
[1726967400692,0.2487884,148.84,148.83,6.719]
[1726967400892,0.2487884,148.84,148.83,64.68008828]
[1726967401096,0.2487884,148.84,148.83,71.22368828]
[1726967404397,0.2487884,148.88,148.83,71.22368828]
[1726967404398,0.2487884,148.88,148.87,26.7172]
[1726967404575,0.2487884,148.88,148.87,68.88098499]
[1726967404900,0.2487884,148.88,148.87,80.12789358]
[1726967406206,0.2487884,148.88,148.87,67.287184]
[1726967413584,0.2487884,148.88,148.87,80.12789358]
[1726967413990,0.2487884,148.88,148.87,81.47070438]
[1726967415011,0.2487884,148.88,148.87,80.12789358]
[1726967417788,0.2487884,148.88,148.87,79.87691358]
[1726967419492,0.2487884,148.88,148.87,81.21987403]
[1726967420006,0.2487884,148.88,148.87,79.87691358]
[1726967420715,0.2487884,148.88,148.87,81.2198747]
[1726967421093,0.2487884,148.88,148.87,80.00240358]
[1726967421998,0.2487884,148.88,148.87,67.287184]
[1726967423094,0.2487884,148.88,148.87,79.87691358]
[1726967424001,0.2487884,148.88,148.87,80.12789358]
[1726967432521,0.2487884,148.88,148.87,67.287184]
[1726967432817,0.2487884,148.88,148.87,43.5103]
[1726967434137,0.2487884,148.88,148.87,67.287184]
[1726967437224,0.2487884,148.88,148.87,23.5103]
[1726967438127,0.2487884,148.88,148.84,23.5144]
[1726967438330,0.2487884,148.88,148.85,6.7179]
[1726967438829,0.2487884,148.88,148.85,8.06133309]
[1726967441438,0.2487884,148.88,148.87,6.7172]
[1726967442119,0.2487884,148.88,148.86,23.5113]
[1726967442434,0.2487884,148.88,148.87,8.06051909]
[1726967444941,0.2487884,148.88,148.87,6.7172]
[1726967446535,0.2487884,148.88,148.86,23.5112]
[1726967446742,0.2487884,148.88,148.86,16.7937]
[1726967447732,0.2487884,148.88,148.86,23.5112]
[1726967452313,0.2487884,148.88,148.86,16.7937]
[1726967453340,0.2487884,148.88,148.86,23.5114]
[1726967456936,0.2487884,148.88,148.86,16.7937]
[1726967466424,6.7194,148.83,148.78,6.7211]
[1726967466622,16.0826,148.87,148.8,6.7203]
[1726967466623,6.7186,148.84,148.8,6.7203]
[1726967466933,1.67988269,148.83,148.8,6.7203]
[1726967467248,8.39898269,148.83,148.79,16.8017]
[1726967467449,8.39961368,148.82,148.78,6.7213]
[1726967467753,30.73329747,148.88,148.76,23.5272]
[1726967467754,16.0826,148.81,148.76,23.5272]
[1726967467924,1.68036094,148.8,148.76,23.5272]
[1726967469653,8.40076094,148.8,148.76,16.8051]
[1726967470123,6.7204,148.8,148.76,16.8051]
[1726967471172,16.0826,148.81,148.76,24.87149883]
[1726967471352,16.0826,148.81,148.76,23.5271]
[1726967472361,1.68032952,148.8,148.76,23.5271]
[1726967472737,8.40082952,148.8,148.76,16.8051]
[1726967474273,6.7205,148.8,148.76,16.8051]
[1726967475064,16.0826,148.81,148.76,16.8051]
[1726967476063,16.0826,148.81,148.77,6.7217]
[1726967476278,8.40085053,148.8,148.76,16.8051]
[1726967476582,6.7217,148.77,148.73,17.0571884]
[1726967476748,1.68077681,148.76,148.73,17.0571884]
[1726967477450,1.68077681,148.76,148.73,23.7805884]
[1726967477670,6.7214,148.78,148.74,6.723]
[1726967477854,6.7209,148.79,148.74,6.723]
[1726967478168,0.12549,148.78,148.74,6.723]
[1726967479580,6.7213,148.78,148.74,6.723]
[1726967479950,1.68071782,148.77,148.74,6.723]
[1726967480561,0.12549,148.76,148.73,0.2487884]
[1726967480767,6.7231,148.74,148.73,0.2487884]
[1726967481652,8.40365909,148.75,148.73,0.2487884]
[1726967481860,15.479,148.76,148.73,0.2487884]
[1726967482186,15.479,148.76,148.73,6.9722884]
[1726967482546,15.479,148.76,148.75,6.7226]
[1726967482748,15.479,148.76,148.74,6.7231]
[1726967483061,15.479,148.76,148.73,6.9722884]
[1726967486077,15.479,148.76,148.74,6.7231]
[1726967488072,22.2014,148.76,148.73,0.2487884]
[1726967488659,15.479,148.76,148.73,0.2487884]
[1726967490370,15.479,148.76,148.74,6.7231]
[1726967491477,6.7214,148.78,148.74,6.7231]
[1726967491997,6.7223,148.76,148.73,0.2487884]
[1726967493796,1.68097552,148.75,148.73,0.2487884]
[1726967494571,8.40367552,148.75,148.73,0.2487884]
[1726967494876,1.68097753,148.74,148.73,0.2487884]
[1726967496086,8.65505753,148.74,148.73,0.2487884]
[1726967496272,6.97408,148.74,148.73,0.2487884]
[1726967496481,8.65532186,148.74,148.73,0.2487884]
[1726967496987,26.84989,148.71,148.7,0.170332]
[1726967497175,26.97538,148.71,148.7,0.170332]
[1726967501098,28.65705082,148.71,148.7,0.170332]
[1726967501767,28.65705082,148.71,148.64,0.2487884]
[1726967501768,26.97638,148.69,148.64,0.2487884]
[1726967501970,28.65828472,148.69,148.64,0.2487884]
[1726967503397,6.7272,148.65,148.64,0.2487884]
[1726967503686,26.7272,148.65,148.64,0.2487884]
[1726967506876,66.114864,148.65,148.64,0.2487884]
[1726967507199,6.97908,148.63,148.62,0.170332]
[1726967507403,8.66163585,148.63,148.62,0.170332]
[1726967508733,52.43851985,148.63,148.62,0.170332]
[1726967511795,52.43851985,148.63,148.6,0.2487884]
[1726967511796,6.729,148.61,148.6,0.2487884]
[1726967512000,6.729,148.61,148.53,17.001432]
[1726967512001,20.25098,148.58,148.53,17.001432]
[1726967512177,1.68308791,148.57,148.53,17.001432]
[1726967512978,20.0,148.61,148.53,17.001432]
[1726967513284,6.7302,148.59,148.54,7.0590931]
[1726967513480,6.7304,148.58,148.54,7.0590931]
[1726967514986,6.7304,148.58,148.54,0.3269931]
[1726967515189,5.714012,148.62,148.54,0.3269931]
[1726967515389,5.714012,148.62,148.54,1.67312445]
[1726967515581,15.3186,148.63,148.54,1.67312445]
[1726967515782,6.7291,148.61,148.56,6.7309]
[1726967515982,29.172712,148.66,148.56,1.34612197]
[1726967516707,20.0,148.65,148.56,1.34612197]
[1726967516998,6.7281,148.63,148.59,6.7298]
[1726967517204,6.7281,148.63,148.58,6.7302]
[1726967518581,6.7286,148.62,148.58,6.7302]
[1726967519900,1.68248463,148.61,148.57,23.5569]
[1726967520314,8.41148463,148.61,148.57,16.8262]
[1726967520475,1.68262278,148.6,148.57,16.8262]
[1726967520801,1.68262278,148.6,148.55,6.7317]
[1726967520802,6.7295,148.6,148.55,6.7317]
[1726967520978,6.729,148.61,148.56,6.7311]
[1726967521384,6.7295,148.6,148.55,6.7316]
[1726967521805,6.7312,148.57,148.54,0.3269931]
[1726967521980,0.25098,148.59,148.54,0.3269931]
[1726967523402,6.7304,148.58,148.54,0.3269931]
[1726967524280,6.7308,148.57,148.54,0.3269931]
[1726967526779,6.7317,148.55,148.54,0.3269931]
[1726967526996,6.85719,148.55,148.54,0.3269931]
[1726967528378,6.85719,148.55,148.53,0.4973251]
[1726967530122,1.68332876,148.54,148.53,0.4973251]
[1726967532004,6.7309,148.57,148.53,0.4973251]
[1726967532213,20.0,148.56,148.53,0.4973251]
[1726967532394,1.68310927,148.55,148.53,0.4973251]
[1726967532595,20.0,148.56,148.53,0.4973251]
[1726967532787,6.7308,148.58,148.53,1.8438051]
[1726967532999,6.7308,148.58,148.53,0.4973251]
[1726967534011,6.7308,148.58,148.53,7.2299251]
[1726967534896,6.7299,148.59,148.54,6.7321]
[1726967535210,26.85499,148.6,148.55,6.7316]
[1726967535585,6.73,148.59,148.54,6.732]
[1726967535788,20.0,148.58,148.54,6.732]
[1726967536014,6.73,148.59,148.54,6.732]
[1726967536515,6.73,148.59,148.53,23.3490251]
[1726967536516,7.01081861,148.61,148.57,6.7307]
[1726967536688,6.7286,148.62,148.57,6.7307]
[1726967537012,6.7281,148.63,148.58,6.7302]
[1726967537212,6.7286,148.62,148.58,6.7302]
[1726967537589,6.7286,148.62,148.56,23.5582]
[1726967537904,6.7286,148.62,148.57,6.7306]
[1726967543092,6.7286,148.62,148.58,6.7303]
[1726967543416,6.7286,148.62,148.58,6.7835756]
[1726967544293,6.7286,148.62,148.58,0.0532756]
[1726967544895,8.41140417,148.61,148.58,0.0532756]
[1726967545100,1.68246173,148.6,148.58,0.0532756]
[1726967548399,8.41186173,148.6,148.58,0.0532756]
[1726967548600,20.0,148.64,148.58,0.0532756]
[1726967548601,8.41260998,148.59,148.58,0.0532756]
[1726967548928,6.7299,148.59,148.58,0.0532756]
[1726967549099,6.7295,148.6,148.58,0.0532756]
[1726967549301,1.68269744,148.59,148.58,0.0532756]
[1726967550097,8.41259744,148.59,148.58,0.0532756]
[1726967550300,6.7299,148.59,148.58,0.0532756]
[1726967550614,6.85539,148.59,148.58,0.0532756]
[1726967550998,26.98088,148.59,148.58,0.0532756]
[1726967558008,50.757764,148.59,148.58,0.0532756]
[1726967561946,6.7321,148.54,148.53,0.4440495]
[1726967562112,6.85759,148.54,148.53,0.4440495]
[1726967562629,6.98308,148.54,148.53,0.4440495]
[1726967565706,26.98308,148.54,148.53,0.4440495]
[1726967569241,50.759964,148.54,148.53,0.4440495]
[1726967569412,52.44365155,148.54,148.53,0.4440495]
[1726967574822,6.98418,148.52,148.51,0.2544186]
[1726967575046,8.66786912,148.52,148.51,0.5758232]
[1726967578943,6.98418,148.52,148.51,0.5758232]
[1726967582126,6.7327,148.53,148.51,0.5758232]
[1726967583036,8.41658769,148.52,148.51,0.5758232]
[1726967584048,6.733,148.52,148.51,0.5758232]
[1726967588066,6.98398,148.52,148.51,0.5758232]
[1726967588259,50.760864,148.52,148.51,0.5758232]
[1726967589356,50.760864,148.52,148.47,0.2544186]
[1726967589357,0.12549,148.48,148.47,0.2544186]
[1726967590257,6.734,148.5,148.47,0.2544186]
[1726967592552,1.68389146,148.49,148.47,0.2544186]
[1726967593232,6.734,148.5,148.47,0.2544186]
[1726967593734,1.68389278,148.49,148.47,0.2544186]
[1726967594133,6.734,148.5,148.47,0.2544186]
[1726967594574,1.68389206,148.49,148.47,0.2544186]
[1726967595558,6.734,148.5,148.47,0.2544186]
[1726967596862,6.7349,148.48,148.47,0.2544186]
[1726967597154,6.7345,148.49,148.47,0.2544186]
[1726967601962,50.762764,148.48,148.47,0.2544186]
[1726967604045,52.44711983,148.48,148.47,0.2544186]
[1726967604554,32.44711983,148.48,148.47,0.2544186]
[1726967604767,50.762764,148.48,148.47,0.2544186]
[1726967605361,50.762764,148.48,148.44,0.170332]
[1726967605362,6.7362,148.45,148.44,0.170332]
[1726967605547,6.86169,148.45,148.44,0.170332]
[1726967606067,6.98718,148.45,148.44,0.170332]
[1726967606646,26.98718,148.45,148.44,0.170332]
[1726967606843,50.764064,148.45,148.44,0.170332]
[1726967607167,50.764064,148.45,148.42,0.2544186]
[1726967607168,6.98808,148.43,148.42,0.2544186]
[1726967611847,6.7389,148.39,148.38,0.2544186]
[1726967612049,6.98988,148.39,148.38,0.2544186]
[1726967613194,6.7389,148.39,148.35,0.4632382]
[1726967613342,0.12549,148.39,148.38,0.0938844]
[1726967613744,8.54951327,148.39,148.38,0.0938844]
[1726967615165,20.0,148.41,148.38,0.0938844]
[1726967615462,20.0,148.44,148.38,6.8331844]
[1726967616242,6.7376,148.42,148.38,6.8331844]
[1726967616870,6.7376,148.42,148.38,0.0938844]
[1726967616871,0.12549,148.41,148.38,0.0938844]
[1726967617057,20.0,148.42,148.38,6.8328844]
[1726967617252,6.86269,148.43,148.38,6.8328844]
[1726967618169,0.12549,148.43,148.39,6.7386]
[1726967618770,20.12549,148.43,148.39,6.7386]
[1726967619478,6.86279,148.43,148.39,6.7386]
[1726967621878,6.86279,148.43,148.38,16.9417844]
[1726967621879,6.7382,148.41,148.38,0.0938844]
[1726967622074,1.68489574,148.4,148.38,0.0938844]
[1726967622983,1.68489264,148.41,148.38,0.0938844]
[1726967623970,6.86269,148.43,148.38,0.0938844]
[1726967624573,0.12549,148.43,148.39,6.7389]
[1726967624802,20.12549,148.43,148.39,6.7389]
[1726967626385,6.86269,148.43,148.39,6.7389]
[1726967626970,0.12549,148.41,148.38,6.8331844]
[1726967627262,0.12549,148.42,148.39,6.7388]
[1726967627470,1.68477932,148.42,148.39,6.7388]
[1726967627687,1.68477932,148.42,148.38,6.8332844]
[1726967628192,8.42237932,148.42,148.38,6.8332844]
[1726967628363,6.7376,148.42,148.38,6.8332844]
[1726967628886,1.68477602,148.41,148.38,6.8332844]
[1726967630568,0.12549,148.4,148.38,0.0938844]
[1726967630871,0.12549,148.41,148.38,0.0938844]
[1726967631581,0.12549,148.41,148.37,23.1827844]
[1726967631981,8.67433161,148.41,148.37,16.4429844]
[1726967633366,8.67433161,148.41,148.37,23.1827844]
[1726967633583,0.25098,148.41,148.37,23.1827844]
[1726967634085,6.1022,148.48,148.41,6.738]
[1726967634269,6.1022,148.48,148.39,16.8467]
[1726967634270,6.7363,148.45,148.4,6.7384]
[1726967635360,1.68450183,148.44,148.4,6.7384]
[1726967635773,6.7363,148.45,148.4,6.7384]
[1726967636666,44.027864,148.46,148.42,6.7371]
[1726967636870,6.7371,148.44,148.39,6.7389]
[1726967637187,0.12549,148.42,148.37,23.314]
[1726967638390,0.12549,148.42,148.38,6.7393]
[1726967640695,0.12549,148.44,148.37,23.314]
[1726967640994,6.98778,148.44,148.4,6.7384]
[1726967641297,0.25098,148.41,148.38,6.7392]
[1726967641462,0.25098,148.41,148.37,30.0535]
[1726967642086,0.25098,148.41,148.37,23.5884]
[1726967647092,0.25098,148.39,148.36,6.7403]
[1726967647797,23.776884,148.41,148.37,6.7398]
[1726967647798,0.12549,148.4,148.37,6.7398]
[1726967648090,0.25098,148.41,148.36,16.8504]
[1726967648266,0.25098,148.41,148.37,6.7397]
[1726967650191,20.0,148.43,148.38,16.8479]
[1726967650491,20.0,148.44,148.36,7.7289881]
[1726967651200,6.7375,148.43,148.38,6.7391]
[1726967651787,0.25098,148.42,148.38,6.7391]
[1726967651983,30.765864,148.42,148.37,23.5889]
[1726967652192,30.765864,148.42,148.37,16.8491]
[1726967652193,0.25098,148.42,148.37,16.8491]
[1726967652394,0.25098,148.42,148.39,6.7389]
[1726967652569,6.7367,148.44,148.39,6.7389]
[1726967652773,0.25098,148.44,148.4,6.7383]
[1726967653089,26.7363,148.45,148.4,6.7384]